bitfinex/quotes_SOLUSD_20250731
["timestamp","ask_amount","ask_price","bid_price","bid_amount"]
[1753972058816,0.03,176.23,176.22,15.6002764]
[1753972059611,0.03,176.23,176.22,9.92555163]
[1753972060403,0.03,176.23,176.2,5.67536889]
[1753972060632,0.03,176.23,176.22,9.92555163]
[1753972061735,0.03,176.23,176.19,5.67562622]
[1753972062032,0.73,176.23,176.22,9.92555163]
[1753972062212,0.73,176.23,176.21,9.92555163]
[1753972062614,0.03,176.23,176.2,9.92555163]
[1753972062808,5.67504681,176.21,176.17,9.92555163]
[1753972063007,0.7,176.2,176.16,52.42555163]
[1753972063213,10.62555163,176.19,176.14,22.39053202]
[1753972063427,0.7,176.18,176.14,16.71325163]
[1753972063739,16.30059844,176.21,176.16,9.92555163]
[1753972063920,0.7,176.2,176.16,9.92555163]
[1753972064235,0.03,176.23,176.19,9.92555163]
[1753972064408,0.03,176.23,176.2,9.92555163]
[1753972064821,6.40450942,176.23,176.2,9.92555163]
[1753972065617,6.40450942,176.23,176.17,6.33629269]
[1753972065618,0.03,176.23,176.22,9.92555163]
[1753972066339,0.03,176.23,176.22,10.58555163]
[1753972067025,0.03,176.23,176.22,33.04496037]
[1753972067424,0.03,176.23,176.22,44.583212]
[1753972067633,0.03,176.23,176.22,77.13766037]
[1753972067808,0.03,176.23,176.22,87.063212]
[1753972068412,0.03,176.23,176.22,77.13766037]
[1753972068825,0.03,176.23,176.22,76.47766037]
[1753972069060,0.03,176.23,176.22,54.01825163]
[1753972069424,0.03,176.23,176.22,52.40555163]
[1753972071243,0.03,176.23,176.22,42.48]
[1753972071536,0.03,176.23,176.22,9.92555163]
[1753972072860,0.73,176.23,176.2,9.92555163]
[1753972073573,0.7,176.22,176.2,9.92555163]
[1753972074072,0.03,176.23,176.2,9.92555163]
[1753972074437,0.7,176.22,176.19,52.40555163]
[1753972074658,0.7,176.22,176.2,9.92555163]
[1753972074851,0.03,176.23,176.2,9.92555163]
[1753972075563,6.40444395,176.23,176.19,42.48]
[1753972075739,6.40444395,176.23,176.2,9.92555163]
[1753972075935,0.03,176.23,176.22,35.92555163]
[1753972076271,0.03,176.32,176.27,16.78468397]
[1753972076441,0.03,176.32,176.31,9.92555163]
[1753972079357,0.73,176.32,176.27,1.6376]
[1753972079570,0.73,176.32,176.28,9.92555163]
[1753972079571,0.7,176.31,176.28,9.92555163]
[1753972079862,0.03,176.32,176.3,9.92555163]
[1753972080243,0.03,176.32,176.31,9.92555163]
[1753972080455,0.03,176.32,176.31,27.2774184]
[1753972080781,0.03,176.32,176.31,27.3702356]
[1753972081474,0.1,176.41,176.35,26.0]
[1753972081673,0.1,176.41,176.4,9.92555163]
[1753972081970,0.1,176.41,176.37,42.78468397]
[1753972082169,0.7,176.4,176.33,7.3653]
[1753972082374,10.62555163,176.4,176.35,9.92555163]
[1753972082575,0.7,176.39,176.33,13.03622462]
[1753972082873,0.1,176.41,176.38,9.92555163]
[1753972083177,0.7,176.4,176.37,9.92555163]
[1753972083491,0.1,176.41,176.39,9.92555163]
[1753972083655,0.1,176.41,176.4,9.92555163]
[1753972085377,0.1,176.41,176.37,6.3298374]
[1753972085576,0.1,176.41,176.4,9.92555163]
[1753972085775,0.1,176.41,176.37,6.3298374]
[1753972085968,0.1,176.41,176.4,9.92555163]
[1753972086562,0.8,176.41,176.39,9.92555163]
[1753972086761,0.1,176.41,176.4,9.92555163]
[1753972087482,0.8,176.41,176.38,9.92555163]
[1753972087658,0.8,176.41,176.4,9.92555163]
[1753972087852,0.1,176.41,176.4,9.92555163]
[1753972089180,0.1,176.41,176.4,33.05916984]
[1753972091178,0.1,176.41,176.4,32.37916984]
[1753972091759,0.1,176.41,176.4,26.7102356]
[1753972092083,0.1,176.41,176.4,27.3902356]
[1753972092780,0.1,176.41,176.4,33.05916984]
[1753972093476,0.1,176.41,176.4,32.37916984]
[1753972093678,0.1,176.41,176.39,28.8445781]
[1753972093679,0.8,176.41,176.39,28.8445781]
[1753972093859,0.8,176.41,176.39,12.77012973]
[1753972094063,10.62555163,176.4,176.35,9.92555163]
[1753972094258,0.7,176.39,176.35,9.92555163]
[1753972094482,0.7,176.39,176.35,26.7102356]
[1753972094872,15.59450997,176.4,176.35,16.78468397]
[1753972095075,0.7,176.39,176.35,26.7102356]
[1753972095254,0.7,176.39,176.36,9.92555163]
[1753972096203,0.7,176.39,176.37,9.92555163]
[1753972096378,9.92555163,176.4,176.36,9.92555163]
[1753972096580,0.7,176.39,176.36,9.92555163]
[1753972096991,0.7,176.39,176.35,26.7102356]
[1753972097183,0.7,176.38,176.35,9.92555163]
[1753972097595,0.7,176.37,176.34,19.6161255]
[1753972097895,0.7,176.37,176.35,9.92555163]
[1753972098295,10.62555163,176.39,176.35,9.92555163]
[1753972098479,0.7,176.39,176.35,9.92555163]
[1753972099208,0.7,176.38,176.35,9.92555163]
[1753972099406,5.66893424,176.4,176.34,19.6161255]
[1753972099407,10.62555163,176.37,176.34,2.83144153]
[1753972099611,10.62555163,176.36,176.31,26.7102356]
[1753972099777,9.92555163,176.36,176.31,26.7102356]
[1753972099983,10.62555163,176.35,176.31,2.86180475]
[1753972100204,0.7,176.34,176.3,26.7102356]
[1753972100899,0.7,176.34,176.32,9.98555163]
[1753972102899,0.7,176.34,176.32,0.06]
[1753972103109,10.62555163,176.36,176.32,9.98555163]
[1753972103404,0.03,176.39,176.33,9.92555163]
[1753972103612,0.03,176.39,176.32,0.06]
[1753972103613,0.7,176.38,176.32,0.06]
[1753972103786,0.7,176.38,176.34,9.92555163]
[1753972103985,10.62555163,176.38,176.34,9.92555163]
[1753972104305,9.92555163,176.36,176.32,26.06]
[1753972104515,9.92555163,176.34,176.32,0.06]
[1753972104686,10.62555163,176.33,176.32,0.06]
[1753972105086,16.29673634,176.33,176.32,0.06]
[1753972105508,6.37118471,176.33,176.32,0.06]
[1753972106005,5.67090209,176.34,176.32,0.06]
[1753972106305,16.29616832,176.35,176.32,0.06]
[1753972106514,15.59616832,176.35,176.32,0.06]
[1753972106806,0.7,176.34,176.32,0.06]
[1753972107004,9.92555163,176.33,176.32,0.06]
[1753972107311,5.67118471,176.33,176.32,0.06]
[1753972107516,0.7,176.36,176.32,0.06]
[1753972107814,0.7,176.38,176.32,0.06]
[1753972107981,0.7,176.37,176.33,9.92555163]
[1753972108182,5.66957704,176.38,176.35,9.92555163]
[1753972108401,43.11,176.39,176.36,9.92555163]
[1753972108995,0.03,176.39,176.37,9.92555163]
[1753972109404,0.03,176.39,176.38,9.92555163]
[1753972110214,0.73,176.39,176.36,9.92555163]
[1753972110508,0.73,176.39,176.37,9.92555163]
[1753972110706,0.73,176.39,176.36,9.92555163]
[1753972111312,6.39930621,176.39,176.36,9.92555163]
[1753972111808,0.7,176.38,176.32,26.06]
[1753972111986,9.92555163,176.37,176.32,9.98555163]
[1753972112181,0.7,176.36,176.32,9.98555163]
[1753972112406,9.92555163,176.37,176.32,0.06]
[1753972112583,9.92555163,176.34,176.32,0.06]
[1753972113094,10.62555163,176.33,176.32,0.06]
[1753972113603,0.7,176.33,176.32,0.06]
[1753972113995,16.29673634,176.33,176.32,0.06]
[1753972114316,15.5961383,176.35,176.32,0.06]
[1753972114726,16.2561383,176.35,176.32,0.06]
[1753972115292,15.5961383,176.35,176.32,0.06]
[1753972115487,0.66,176.34,176.32,0.06]
[1753972116823,200.24555163,176.38,176.33,9.92555163]
[1753972117000,0.66,176.37,176.33,9.92555163]
[1753972117524,0.66,176.36,176.32,0.06]
[1753972117824,0.66,176.36,176.32,9.98555163]
[1753972118029,9.92555163,176.36,176.32,0.06]
[1753972118315,10.58555163,176.35,176.32,0.06]
[1753972118531,195.98966625,176.38,176.32,0.06]
[1753972118696,52.28555163,176.37,176.32,9.98555163]
[1753972118898,0.69,176.39,176.36,9.92555163]
[1753972119121,0.03,176.39,176.37,9.92555163]
[1753972119512,0.03,176.39,176.38,9.92555163]
[1753972120704,0.03,176.39,176.34,28.225]
[1753972120907,0.03,176.39,176.37,9.92555163]
[1753972121426,0.03,176.39,176.38,9.92555163]
[1753972121725,0.03,176.39,176.37,9.92555163]
[1753972121892,0.03,176.39,176.36,9.92555163]
[1753972122096,0.03,176.39,176.38,9.92555163]
[1753972122599,0.03,176.39,176.38,27.3702356]
[1753972122999,0.03,176.39,176.38,27.9371933]
[1753972123523,0.03,176.39,176.38,33.60677034]
[1753972123925,0.1,176.41,176.4,16.78468397]
[1753972124135,0.1,176.41,176.4,27.27712902]
[1753972124335,0.1,176.41,176.4,27.93712902]
[1753972124820,0.1,176.41,176.4,53.93712902]
[1753972125137,0.1,176.41,176.4,27.93712902]
[1753972125339,0.03,176.43,176.42,28.2305356]
[1753972125544,0.03,176.43,176.42,76.80565632]
[1753972125848,0.03,176.43,176.42,67.54010469]
[1753972126148,0.03,176.43,176.42,77.46565632]
[1753972126350,0.03,176.43,176.42,84.55495632]
[1753972127714,0.03,176.43,176.42,94.48050795]
[1753972128119,1e-08,176.43,176.42,94.48050795]
[1753972128346,0.1,176.48,176.46,42.78468397]
[1753972128551,0.1,176.48,176.47,26.7102356]
[1753972130152,0.1,176.48,176.47,32.37692115]
[1753972130653,0.1,176.48,176.47,33.03692115]
[1753972132056,0.1,176.48,176.47,26.7102356]
[1753972133039,0.1,176.48,176.47,32.37692115]
[1753972133474,0.1,176.48,176.47,16.78468397]
[1753972133664,0.1,176.48,176.46,68.32]
[1753972133852,16.35194067,176.48,176.44,42.3]
[1753972134170,9.92555163,176.45,176.38,14.6103247]
[1753972134344,9.92555163,176.43,176.39,42.3]
[1753972134539,9.92555163,176.43,176.41,9.92555163]
[1753972134540,0.66,176.43,176.41,9.92555163]
[1753972134737,0.66,176.43,176.4,26.7102356]
[1753972135557,0.66,176.46,176.41,9.92555163]
[1753972135765,9.92555163,176.46,176.41,9.92555163]
[1753972135978,0.66,176.45,176.41,9.92555163]
[1753972136473,0.66,176.45,176.42,9.92555163]
[1753972136697,0.66,176.45,176.43,9.92555163]
[1753972136983,10.58555163,176.44,176.39,42.3]
[1753972137275,9.92555163,176.41,176.38,26.0]
[1753972137452,9.92555163,176.41,176.37,59.06468397]
[1753972137653,0.66,176.4,176.37,68.9902356]
[1753972137855,0.66,176.4,176.37,74.66007523]
[1753972138055,0.66,176.4,176.38,9.92555163]
[1753972138255,0.66,176.39,176.37,42.28]
[1753972138576,0.66,176.38,176.35,59.06468397]
[1753972138748,0.66,176.38,176.35,68.9902356]
[1753972139144,9.92555163,176.4,176.35,68.9902356]
[1753972139371,9.92555163,176.41,176.37,9.92555163]
[1753972139681,0.66,176.41,176.37,9.92555163]
[1753972140287,0.66,176.44,176.4,9.92555163]
[1753972140472,0.66,176.44,176.41,9.92555163]
[1753972140676,0.66,176.46,176.41,0.56686128]
[1753972140876,0.66,176.45,176.42,9.92555163]
[1753972141183,0.66,176.47,176.44,9.92555163]
[1753972141364,15.69219613,176.48,176.43,9.92555163]
[1753972141558,9.92555163,176.45,176.41,42.84686128]
[1753972141886,0.66,176.44,176.4,9.92555163]
[1753972142078,10.58555163,176.44,176.4,16.78468397]
[1753972142386,0.66,176.43,176.41,9.92555163]
[1753972142671,0.66,176.43,176.4,26.7102356]
[1753972142853,0.66,176.43,176.4,22.45358883]
[1753972143053,0.66,176.43,176.4,32.37914046]
[1753972143260,0.66,176.43,176.41,9.92555163]
[1753972143884,0.66,176.45,176.41,9.92555163]
[1753972144053,0.1,176.48,176.41,15.59411421]
[1753972144054,0.71,176.44,176.41,15.59411421]
[1753972144255,10.63555163,176.47,176.42,9.92555163]
[1753972144464,9.92555163,176.43,176.38,26.0]
[1753972144658,9.92555163,176.42,176.38,26.0]
[1753972144868,5.66678145,176.47,176.37,42.28]
[1753972144869,9.92555163,176.4,176.37,42.28]
[1753972145060,0.71,176.4,176.37,42.28]
[1753972145270,9.92555163,176.43,176.38,26.7102356]
[1753972145585,173.3,176.46,176.38,26.7102356]
[1753972145586,10.63555163,176.42,176.38,26.7102356]
[1753972145879,10.63555163,176.41,176.37,52.20555163]
[1753972146088,10.63555163,176.4,176.35,47.93053225]
[1753972146385,0.71,176.43,176.38,26.7102356]
[1753972146559,0.71,176.42,176.38,9.92555163]
[1753972146760,9.92555163,176.41,176.35,47.93053225]
[1753972146960,5.66732785,176.45,176.35,52.18555163]
[1753972146961,9.92555163,176.4,176.35,52.18555163]
[1753972147167,10.63555163,176.39,176.35,42.26]
[1753972147463,0.71,176.38,176.35,42.26]
[1753972147796,0.71,176.41,176.36,9.92555163]
[1753972147998,10.63555163,176.41,176.36,9.92555163]
[1753972148500,16.30418121,176.41,176.35,47.93051491]
[1753972148692,16.30418121,176.41,176.36,9.92555163]
[1753972148891,15.59418121,176.41,176.36,9.92555163]
[1753972149097,5.66862958,176.41,176.35,47.93051491]
[1753972149308,10.63555163,176.4,176.36,9.92555163]
[1753972149610,0.71,176.39,176.36,9.92555163]
[1753972150308,0.71,176.39,176.35,52.18555163]
[1753972150506,9.92555163,176.36,176.32,26.06]
[1753972150806,0.71,176.35,176.32,0.06]
[1753972151171,0.71,176.34,176.32,0.06]
[1753972151787,10.63555163,176.33,176.32,0.06]
[1753972152582,15.59654364,176.34,176.32,0.06]
[1753972152980,15.59616034,176.35,176.32,0.06]
[1753972153306,16.30616034,176.35,176.32,0.06]
[1753972153508,9.92555163,176.33,176.32,0.06]
[1753972153898,5.67060871,176.35,176.32,0.06]
[1753972153899,9.92555163,176.35,176.32,0.06]
[1753972154286,16.30554144,176.37,176.32,0.06]
[1753972154501,16.30554144,176.37,176.32,9.98555163]
[1753972154702,0.71,176.36,176.32,9.98555163]
[1753972155276,0.71,176.36,176.32,0.06]
[1753972155482,9.92555163,176.33,176.32,0.06]
[1753972156009,10.63555163,176.33,176.32,0.06]
[1753972156313,0.71,176.33,176.32,0.06]
[1753972156704,10.63555163,176.33,176.32,0.06]
[1753972156876,16.30673634,176.33,176.32,0.06]
[1753972157296,10.63555163,176.33,176.32,0.06]
[1753972158798,16.30673634,176.33,176.32,0.06]
[1753972159818,6.38118471,176.33,176.32,0.06]
[1753972159992,16.30673634,176.33,176.32,0.06]
[1753972161507,26.23228797,176.33,176.3,0.06]
[1753972161708,9.92555163,176.31,176.3,0.06]
[1753972162190,10.63555163,176.31,176.3,0.06]
[1753972162909,16.30737966,176.31,176.29,0.06]
[1753972163122,10.63555163,176.3,176.29,0.06]
[1753972164921,16.30770137,176.3,176.29,0.06]
[1753972165617,58.54770137,176.3,176.29,0.06]
[1753972165817,58.54770137,176.3,176.29,1e-08]
[1753972167822,16.30770137,176.3,176.29,1e-08]
[1753972168119,48.62214974,176.3,176.29,1e-08]
[1753972168325,15.59742505,176.31,176.29,1e-08]
[1753972168496,57.83742505,176.31,176.29,1e-08]
[1753972168908,15.59770137,176.3,176.29,1e-08]
[1753972169318,5.67118471,176.33,176.29,1e-08]
[1753972169514,52.16555163,176.32,176.29,1e-08]
[1753972170322,52.87555163,176.32,176.29,1e-08]
[1753972171327,57.81677962,176.33,176.29,0.65000001]
[1753972171502,58.52677962,176.33,176.29,1e-08]
[1753972171702,48.60122799,176.33,176.29,1e-08]
[1753972171905,0.71,176.36,176.31,9.92555163]
[1753972172130,52.14555163,176.37,176.32,9.92555163]
[1753972172312,9.92555163,176.36,176.31,10.57555163]
[1753972172714,5.66957704,176.38,176.33,9.92555163]
[1753972173008,47.88957704,176.38,176.34,10.57555163]
[1753972173530,9.92555163,176.35,176.29,9.92555164]
[1753972173719,9.92555163,176.35,176.3,9.92555163]
[1753972174023,9.92555163,176.35,176.3,10.57555163]
[1753972174332,62.06351966,176.38,176.31,9.92555163]
[1753972174531,0.68,176.37,176.31,10.60555163]
[1753972174743,9.92555163,176.41,176.36,9.92555163]
[1753972174907,5.66838205,176.42,176.38,9.92555163]
[1753972175244,5.69797029,176.43,176.39,9.92555163]
[1753972175406,5.69797029,176.43,176.38,0.68]
[1753972175407,16.30352192,176.43,176.38,0.68]
[1753972175743,16.30352192,176.43,176.38,9.92555163]
[1753972175907,5.69797029,176.43,176.39,9.92555163]
[1753972176109,5.69797029,176.43,176.39,10.60555163]
[1753972176537,15.62352192,176.43,176.38,9.92555163]
[1753972176716,16.30352192,176.43,176.38,9.92555163]
[1753972177238,15.62352192,176.43,176.38,10.60555163]
[1753972177408,5.69797029,176.43,176.39,9.92555163]
[1753972177611,0.03,176.43,176.4,10.60555163]
[1753972178008,0.68,176.42,176.38,9.92555163]
[1753972178212,10.60555163,176.41,176.36,9.92555163]
[1753972178627,10.60555163,176.41,176.36,0.68]
[1753972178820,9.92555163,176.41,176.36,10.60555163]
[1753972179342,9.92555163,176.41,176.35,7.7465016]
[1753972179343,9.92555163,176.37,176.35,1.509]
[1753972179512,5.66925562,176.39,176.32,42.22]
[1753972179708,5.66925562,176.39,176.31,7.20444795]
[1753972179709,9.92555163,176.35,176.31,1.5327]
[1753972180715,10.60555163,176.35,176.31,1.5327]
[1753972181017,19.84239468,176.39,176.31,1.5327]
[1753972181232,9.92555163,176.35,176.31,1.5327]
[1753972181425,15.59632584,176.35,176.31,1.5327]
[1753972182238,47.84861289,176.41,176.34,9.92555163]
[1753972182407,47.84861289,176.41,176.37,9.92555163]
[1753972183028,10.60555163,176.4,176.35,9.92555163]
[1753972183215,15.59464307,176.4,176.35,10.60555163]
[1753972183417,16.27464307,176.4,176.35,10.60555163]
[1753972183635,10.60555163,176.4,176.35,15.59601548]
[1753972183837,57.77425728,176.41,176.36,9.92555163]
[1753972184040,42.18,176.41,176.37,9.92555163]
[1753972184232,5.66832311,176.42,176.38,9.92555163]
[1753972184429,52.81555163,176.43,176.38,9.92555163]
[1753972184607,16.3036864,176.43,176.36,1.247022]
[1753972184805,9.92555163,176.41,176.36,26.0]
[1753972185010,10.60555163,176.41,176.36,35.92555163]
[1753972185411,16.2742328,176.41,176.36,35.92555163]
[1753972185615,15.5942328,176.41,176.36,9.92555163]
[1753972185816,10.60555163,176.4,176.35,26.7102356]
[1753972186029,9.92555163,176.37,176.33,68.18]
[1753972186246,9.92555163,176.34,176.31,1.5327]
[1753972187329,9.92555163,176.35,176.31,1.5327]
[1753972187524,16.27578395,176.36,176.31,17.13006296]
[1753972188045,16.27578395,176.36,176.31,11.45825163]
[1753972188360,15.59578395,176.36,176.31,12.13825163]
[1753972188654,16.27578395,176.36,176.31,12.13825163]
[1753972188831,16.27578395,176.36,176.31,17.13007083]
[1753972189038,15.59578395,176.36,176.31,17.81007083]
[1753972189236,6.34893424,176.4,176.35,9.92555163]
[1753972189466,16.27448587,176.4,176.33,0.68]
[1753972189761,16.27448587,176.4,176.35,9.92555163]
[1753972189940,6.34893424,176.4,176.36,9.92555163]
[1753972190132,16.27448587,176.4,176.35,9.92555163]
[1753972190329,15.59448587,176.4,176.35,9.92555163]
[1753972190532,9.92555163,176.36,176.31,43.12977775]
[1753972190746,10.60555163,176.35,176.31,1.5327]
[1753972190951,0.68,176.35,176.31,1.5327]
[1753972191134,10.60555163,176.35,176.31,11.45825163]
[1753972191333,0.68,176.35,176.31,11.45825163]
[1753972191537,9.92555163,176.36,176.31,11.45825163]
[1753972191732,10.60555163,176.36,176.31,17.13003247]
[1753972192063,10.60555163,176.39,176.34,16.78468397]
[1753972192269,0.68,176.39,176.35,9.92555163]
[1753972192431,15.59416452,176.41,176.36,9.92555163]
[1753972192635,16.27416452,176.41,176.36,9.92555163]
[1753972192834,0.68,176.41,176.37,9.92555163]
[1753972193745,0.68,176.41,176.35,0.56705415]
[1753972193962,6.34876041,176.41,176.36,26.7102356]
[1753972194160,10.60555163,176.4,176.35,35.92555163]
[1753972194362,9.95555163,176.4,176.35,35.92555163]
[1753972194545,0.68,176.39,176.35,35.92555163]
[1753972194743,0.68,176.39,176.35,26.0]
[1753972195071,0.68,176.39,176.35,9.92555163]
[1753972195261,0.68,176.39,176.33,16.78468397]
[1753972195460,0.68,176.39,176.35,9.92555163]
[1753972195962,0.68,176.39,176.36,9.92555163]
[1753972196157,5.69913568,176.4,176.36,9.92555163]
[1753972196358,5.69913568,176.4,176.34,0.56708631]
[1753972196558,16.30468731,176.4,176.35,9.92555163]
[1753972197070,0.68,176.39,176.33,1.24711847]
[1753972197270,9.92555163,176.37,176.32,35.92555163]
[1753972197439,10.60555163,176.36,176.31,11.45825163]
[1753972197773,0.68,176.36,176.32,9.92555163]
[1753972197940,6.35046773,176.36,176.32,9.92555163]
[1753972198147,5.6696279,176.38,176.34,9.92555163]
[1753972198670,9.92555163,176.36,176.31,1.5327]
[1753972198839,10.60555163,176.36,176.31,11.45825163]
[1753972199277,10.60555163,176.35,176.31,1.5327]
[1753972199475,9.92555163,176.33,176.3,0.06]
[1753972199836,9.92555163,176.31,176.3,0.06]
[1753972200076,15.59737966,176.31,176.3,0.06]
[1753972200376,16.27737966,176.31,176.29,1e-08]
[1753972200581,10.60555163,176.3,176.23,1.7173]
[1753972200883,9.92555163,176.28,176.23,17.31724553]
[1753972201090,9.92555163,176.28,176.23,1.7173]
[1753972201296,9.92555163,176.24,176.23,0.2]
[1753972201866,10.60555163,176.24,176.23,0.2]
[1753972202186,58.39963242,176.24,176.23,0.2]
[1753972202884,16.27963242,176.24,176.23,0.2]
[1753972203093,62.36191667,176.26,176.23,0.2]
[1753972203395,9.92555163,176.24,176.23,0.2]
[1753972203760,147.3,176.29,176.23,0.2]
[1753972203761,9.92555163,176.3,176.23,10.80555163]
[1753972203966,15.59866673,176.27,176.23,0.2]
[1753972204170,10.63555163,176.26,176.23,0.2]
[1753972204398,10.63555163,176.29,176.24,9.92555163]
[1753972204564,16.30805385,176.29,176.24,9.92555163]
[1753972204876,0.71,176.28,176.24,9.92555163]
[1753972205460,0.71,176.27,176.24,9.92555163]
[1753972205691,0.71,176.27,176.23,10.12555163]
[1753972205881,10.63555163,176.26,176.23,0.2]
[1753972206089,9.92555163,176.25,176.23,0.2]
[1753972206387,6.38369253,176.26,176.23,0.2]
[1753972206388,5.67369253,176.26,176.23,0.2]
[1753972206764,15.59869223,176.27,176.23,0.2]
[1753972207263,0.71,176.26,176.23,0.2]
[1753972207985,5.67375886,176.25,176.23,0.2]
[1753972208790,6.38375886,176.25,176.23,0.2]
[1753972209291,0.71,176.25,176.23,0.2]
[1753972209593,16.30867889,176.27,176.23,0.2]
[1753972209780,9.92555163,176.24,176.23,0.2]
[1753972210299,6.38408079,176.24,176.23,0.2]
[1753972210473,16.30963242,176.24,176.23,0.2]
[1753972211766,58.40963242,176.24,176.23,0.2]
[1753972212288,5.67384834,176.25,176.23,0.2]
[1753972212899,10.63555163,176.24,176.23,0.2]
[1753972213393,14.18223451,176.28,176.23,10.80555163]
[1753972213394,42.1,176.28,176.23,10.80555163]
[1753972213570,10.63555163,176.27,176.23,0.2]
[1753972213988,52.02555163,176.28,176.23,0.2]
[1753972214171,5.67302488,176.28,176.24,9.92555163]
[1753972214675,16.30857651,176.28,176.23,0.88]
[1753972214873,5.67302488,176.28,176.24,9.92555163]
[1753972215369,16.30857651,176.28,176.23,0.2]
[1753972215569,16.30857651,176.28,176.23,10.12555163]
[1753972215807,0.71,176.27,176.23,10.12555163]
[1753972216301,15.5987646,176.27,176.23,0.2]
[1753972216485,0.71,176.26,176.23,0.2]
[1753972216988,15.5987646,176.27,176.23,0.2]
[1753972216989,5.67287696,176.28,176.24,9.92555163]
[1753972217188,5.67253804,176.29,176.23,0.2]
[1753972217491,15.59808967,176.29,176.23,0.2]
[1753972217695,16.30808967,176.29,176.23,0.2]
[1753972218094,6.38253804,176.29,176.25,9.92555163]
[1753972218290,5.67253804,176.29,176.25,9.92555163]
[1753972218597,5.70223233,176.3,176.26,9.92555163]
[1753972218783,6.41223233,176.3,176.26,9.92555163]
[1753972219100,6.41223233,176.3,176.29,9.92555163]
[1753972219101,0.03,176.3,176.29,9.92555163]
[1753972219666,0.03,176.3,176.27,0.56731151]
[1753972219873,0.03,176.3,176.28,9.92555163]
[1753972220104,0.71,176.29,176.25,9.92555163]
[1753972220270,6.3826195,176.29,176.25,9.92555163]
[1753972220698,0.03,176.3,176.28,9.92555163]
[1753972220904,9.92555163,176.29,176.23,26.2]
[1753972221066,10.63555163,176.29,176.23,26.2]
[1753972221271,0.71,176.29,176.25,9.92555163]
[1753972221688,9.92555163,176.29,176.24,9.92555163]
[1753972221881,0.71,176.28,176.24,9.92555163]
[1753972223120,5.67273796,176.29,176.25,9.92555163]
[1753972223332,5.67273796,176.29,176.26,9.92555163]
[1753972223628,5.70223327,176.3,176.26,9.92555163]
[1753972223806,0.03,176.3,176.29,9.92555163]
[1753972224326,0.03,176.3,176.29,10.60555163]
[1753972224529,0.03,176.3,176.29,27.3902356]
[1753972224901,0.03,176.3,176.29,9.92555163]
[1753972225301,0.03,176.3,176.26,84.86468397]
[1753972225504,0.03,176.3,176.24,17.35209204]
[1753972225807,0.74,176.3,176.27,9.92555163]
[1753972226301,0.74,176.3,176.24,59.43209204]
[1753972226702,0.03,176.3,176.29,9.92555163]
[1753972227119,0.03,176.3,176.29,11.17279877]
[1753972227321,0.03,176.3,176.29,27.95748274]
[1753972228721,0.03,176.3,176.29,75.68995423]
[1753972229047,0.03,176.3,176.29,77.19655423]
[1753972229842,0.03,176.3,176.29,84.01525423]
[1753972231429,0.03,176.3,176.29,77.64278274]
[1753972231635,0.03,176.3,176.29,83.31525423]
[1753972232148,0.03,176.3,176.29,50.93254714]
[1753972232448,0.03,176.3,176.29,60.29085163]
[1753972232650,0.03,176.3,176.29,51.96555163]
[1753972233231,0.03,176.3,176.29,75.10270709]
[1753972233540,0.03,176.3,176.29,75.66995423]
[1753972236123,0.03,176.4,176.32,7.3922]
[1753972236457,0.03,176.4,176.39,9.92555163]
[1753972236761,0.03,176.4,176.39,28.3329356]
[1753972236923,0.03,176.4,176.39,24.64356515]
[1753972237125,0.03,176.4,176.39,11.54825163]
[1753972237424,0.03,176.4,176.39,29.0029356]
[1753972237640,0.03,176.46,176.43,42.78468397]
[1753972237839,0.03,176.46,176.45,52.7102356]
[1753972238070,0.1,176.48,176.45,52.7102356]
[1753972238071,0.1,176.48,176.46,16.78468397]
[1753972238256,0.1,176.48,176.47,53.27690415]
[1753972238447,0.1,176.48,176.47,53.92690415]
[1753972239124,0.1,176.48,176.47,53.27690415]
[1753972239349,0.1,176.48,176.47,101.6135897]
[1753972239659,0.03,176.54,176.49,49.60728397]